Workbook

Sheet Instruction
A1: नमस्कार साथिओ
A2: आपकी सहायतार्थ मैने जुलाई 2020 में लगने वाली वार्षिक वेतन वृद्धि के आदेश बनाने के लिए यह एक्सेल प्रोग्राम बनाया है आशा करता हु इससे आपको बहुत सहायता मिलेगी |
A3: प्रयोग में लेना का तरीका
A4: सर्वप्रथम detail में आप अपने कार्यालय का नाम एवं अधीनस्थ विद्यालयों के कर्मचरियों का डाटा इस प्रकार से भरे |
A5: कार्यालय का नाम | B5: कार्यालय का नाम लिखना है जिससे आदेश जारी होने है
A6: नाम कर्मचारी - | B6: इसमें कर्मचारी का नाम लिखे
A7: पद - | B7: कर्मचारी का पद लिखे
A8: सथायी | B8: कर्मचारी का स्थायी का विवरण
A9: नाम विद्यालय - | B9: सम्बंधित कर्मचारी के विद्यालय का नाम लिखे
A10: लेवल - | B10: कर्मचारी का लेवल लिखे
A11: वर्तमान वेतन - | B11: कर्मचारी का 30 जून 2020 का मूल वेतन लिखे
A12: ये डाटा भरने के बाद आपका वार्षिक वेतन वृद्धि आर्डर तैयार हो जायेगा आप इसका प्रिंट लेकर कर्मचारी की निजी पंजिका में लगा सकते है |
A13: For any Problem you can Contact-
A14: SUMIT GIRI, Senior Assistant
A15: Government Senior Secondary School, Rooppura (Kuchaman City)
B16: 9414631519 | F16: sumitgiri777@gmail.com
A17: Password to enter details is 'sumit'. All sheets are protected.

Sheet detail
A1: jktLFkku ljdkj
A2: dk;kZy; dk uke %& | D2: eq[; CykWd f'k{kk vf/kdkjh] chdkusj
A3: fnukad 30twu rd izkIr osru dh fnukad | D3: 2022-07-01
A4: osru o`f} dh fnukad %& | D4: 2023-07-01
A5: Ø-la- | B5: dkfeZd dk uke | C5: dkfeZd dk in | D5: LFkk;h ;k LFkkukiUUk | E5: inLFkkiu LFkku | F5: is&eSfVªDl ysoy | H5: orZeku osru
A6: 1 | B6: Jh lqfer fxjh | C6: lgk0 iz0v0 | D6: LFkk;h | E6: jkmekfo ukiklj | F6: Leval- | G6: 16 | H6: 95900
A7: 2 | B7: d | C7: iz/kkukpk;Z | D7: LFkk;h | E7: jkmekfo ukiklj | F7: Leval- | G7: 16 | H7: 80300
A8: 3 | B8: [k | C8: iz/kkukpk;Z | D8: LFkk;h | E8: jkmekfo ukiklj | F8: Leval- | G8: 16 | H8: 71400
A9: 4 | B9: x | C9: iz/kkukpk;Z | D9: LFkk;h | E9: jkmekfo ukiklj | F9: Leval- | G9: 16 | H9: 75700
A10: 5 | B10: ?k | C10: iz/kkukpk;Z | D10: LFkk;h | E10: jkmekfo ukiklj | F10: Leval- | G10: 16 | H10: 73500
A11: 6 | B11: ; | C11: iz/kkukpk;Z | D11: LFkk;h | E11: jkmekfo ukiklj | F11: Leval- | G11: 16 | H11: 35000
A12: 7 | B12: j | C12: iz/kkukpk;Z | D12: LFkk;h | E12: jkmekfo ukiklj | F12: Leval- | G12: 16 | H12: 36000
A13: 8 | B13: y | C13: iz/kkukpk;Z | D13: LFkk;h | E13: jkmekfo ukiklj | F13: Leval- | G13: 16 | H13: 37000
A14: 9 | B14: o | C14: iz/kkukpk;Z | D14: LFkk;h | E14: jkmekfo ukiklj | F14: Leval- | G14: 16 | H14: 38000
A15: 10 | B15: d | C15: iz/kkukpk;Z | D15: LFkk;h | E15: jkmekfo ukiklj | F15: Leval- | G15: 16 | H15: 39000
A16: 11 | B16: [k | C16: iz/kkukpk;Z | D16: LFkk;h | E16: jkmekfo ukiklj | F16: Leval- | G16: 16 | H16: 40000
A17: 12 | B17: x | C17: iz/kkukpk;Z | D17: LFkk;h | E17: jkmekfo ukiklj | F17: Leval- | G17: 16 | H17: 41000
A18: 13 | B18: ?k | C18: iz/kkukpk;Z | D18: LFkk;h | E18: jkmekfo ukiklj | F18: Leval- | G18: 16 | H18: 42000
A19: 14 | B19: ; | C19: iz/kkukpk;Z | D19: LFkk;h | E19: jkmekfo ukiklj | F19: Leval- | G19: 16 | H19: 43000
A20: 15 | B20: j | C20: iz/kkukpk;Z | D20: LFkk;h | E20: jkmekfo ukiklj | F20: Leval- | G20: 16 | H20: 44000
A21: 16 | B21: y | C21: iz/kkukpk;Z | D21: LFkk;h | E21: jkmekfo ukiklj | F21: Leval- | G21: 16 | H21: 45000
A22: 17 | B22: o | C22: iz/kkukpk;Z | D22: LFkk;h | E22: jkmekfo ukiklj | F22: Leval- | G22: 16 | H22: 46000
A23: 18 | B23: d | C23: iz/kkukpk;Z | D23: LFkk;h | E23: jkmekfo ukiklj | F23: Leval- | G23: 16 | H23: 47000
A24: 19 | B24: [k | C24: iz/kkukpk;Z | D24: LFkk;h | E24: jkmekfo ukiklj | F24: Leval- | G24: 16 | H24: 48000
A25: 20 | B25: x | C25: iz/kkukpk;Z | D25: LFkk;h | E25: jkmekfo ukiklj | F25: Leval- | G25: 16 | H25: 49000
A26: 21 | B26: x | C26: iz/kkukpk;Z | D26: LFkk;h | E26: jkmekfo ukiklj | F26: Leval- | G26: 16 | H26: 50000
A27: 22 | B27: x | C27: iz/kkukpk;Z | D27: LFkk;h | E27: jkmekfo ukiklj | F27: Leval- | G27: 16 | H27: 51000
A28: 23 | B28: x | C28: iz/kkukpk;Z | D28: LFkk;h | E28: jkmekfo ukiklj | F28: Leval- | G28: 16 | H28: 52000
A29: 24 | B29: x | C29: iz/kkukpk;Z | D29: LFkk;h | E29: jkmekfo ukiklj | F29: Leval- | G29: 16 | H29: 53000
A30: 25 | B30: x | C30: iz/kkukpk;Z | D30: LFkk;h | E30: jkmekfo ukiklj | F30: Leval- | G30: 16 | H30: 54000
A31: 26 | B31: x | C31: iz/kkukpk;Z | D31: LFkk;h | E31: jkmekfo ukiklj | F31: Leval- | G31: 16 | H31: 55000
A32: 27 | B32: x | C32: iz/kkukpk;Z | D32: LFkk;h | E32: jkmekfo ukiklj | F32: Leval- | G32: 16 | H32: 56000
A33: 28 | B33: x | C33: iz/kkukpk;Z | D33: LFkk;h | E33: jkmekfo ukiklj | F33: Leval- | G33: 16 | H33: 57000
A34: 29 | B34: x | C34: iz/kkukpk;Z | D34: LFkk;h | E34: jkmekfo ukiklj | F34: Leval- | G34: 16 | H34: 58000
A35: 30 | B35: x | C35: iz/kkukpk;Z | D35: LFkk;h | E35: jkmekfo ukiklj | F35: Leval- | G35: 16 | H35: 59000
A36: 31 | B36: x | C36: iz/kkukpk;Z | D36: LFkk;h | E36: jkmekfo ukiklj | F36: Leval- | G36: 16 | H36: 60000
A37: 32 | B37: x | C37: iz/kkukpk;Z | D37: LFkk;h | E37: jkmekfo ukiklj | F37: Leval- | G37: 16 | H37: 61000
A38: 33 | B38: x | C38: iz/kkukpk;Z | D38: LFkk;h | E38: jkmekfo ukiklj | F38: Leval- | G38: 16 | H38: 62000
A39: 34 | B39: x | C39: iz/kkukpk;Z | D39: LFkk;h | E39: jkmekfo ukiklj | F39: Leval- | G39: 16 | H39: 63000
A40: 35 | B40: x | C40: iz/kkukpk;Z | D40: LFkk;h | E40: jkmekfo ukiklj | F40: Leval- | G40: 16 | H40: 64000
A41: 36 | B41: x | C41: iz/kkukpk;Z | D41: LFkk;h | E41: jkmekfo ukiklj | F41: Leval- | G41: 16 | H41: 65000
A42: 37 | B42: x | C42: iz/kkukpk;Z | D42: LFkk;h | E42: jkmekfo ukiklj | F42: Leval- | G42: 16 | H42: 66000
A43: 38 | B43: x | C43: iz/kkukpk;Z | D43: LFkk;h | E43: jkmekfo ukiklj | F43: Leval- | G43: 16 | H43: 67000
A44: 39 | B44: x | C44: iz/kkukpk;Z | D44: LFkk;h | E44: jkmekfo ukiklj | F44: Leval- | G44: 16 | H44: 68000
A45: 40 | B45: x | C45: iz/kkukpk;Z | D45: LFkk;h | E45: jkmekfo ukiklj | F45: Leval- | G45: 16 | H45: 69000
A46: 41 | B46: x | C46: iz/kkukpk;Z | D46: LFkk;h | E46: jkmekfo ukiklj | F46: Leval- | G46: 16 | H46: 70000
A47: 42 | B47: x | C47: iz/kkukpk;Z | D47: LFkk;h | E47: jkmekfo ukiklj | F47: Leval- | G47: 16 | H47: 71000
A48: 43 | B48: x | C48: iz/kkukpk;Z | D48: LFkk;h | E48: jkmekfo ukiklj | F48: Leval- | G48: 16 | H48: 72000
A49: 44 | B49: x | C49: iz/kkukpk;Z | D49: LFkk;h | E49: jkmekfo ukiklj | F49: Leval- | G49: 16 | H49: 73000
A50: 45 | B50: x | C50: iz/kkukpk;Z | D50: LFkk;h | E50: jkmekfo ukiklj | F50: Leval- | G50: 16 | H50: 74000
A51: 46 | B51: x | C51: iz/kkukpk;Z | D51: LFkk;h | E51: jkmekfo ukiklj | F51: Leval- | G51: 16 | H51: 75000
A52: 47 | B52: x | C52: iz/kkukpk;Z | D52: LFkk;h | E52: jkmekfo ukiklj | F52: Leval- | G52: 16 | H52: 76000
A53: 48 | B53: x | C53: iz/kkukpk;Z | D53: LFkk;h | E53: jkmekfo ukiklj | F53: Leval- | G53: 16 | H53: 77000
A54: 49 | B54: x | C54: iz/kkukpk;Z | D54: LFkk;h | E54: jkmekfo ukiklj | F54: Leval- | G54: 16 | H54: 78000
A55: 50 | B55: x | C55: iz/kkukpk;Z | D55: LFkk;h | E55: jkmekfo ukiklj | F55: Leval- | G55: 16 | H55: 79000
A56: 51 | B56: x | C56: iz/kkukpk;Z | D56: LFkk;h | E56: jkmekfo ukiklj | F56: Leval- | G56: 16 | H56: 80000
A57: 52 | B57: x | C57: iz/kkukpk;Z | D57: LFkk;h | E57: jkmekfo ukiklj | F57: Leval- | G57: 16 | H57: 81000
A58: 53 | B58: x | C58: iz/kkukpk;Z | D58: LFkk;h | E58: jkmekfo ukiklj | F58: Leval- | G58: 16 | H58: 82000
A59: 54 | B59: x | C59: iz/kkukpk;Z | D59: LFkk;h | E59: jkmekfo ukiklj | F59: Leval- | G59: 16 | H59: 83000
A60: 55 | B60: x | C60: iz/kkukpk;Z | D60: LFkk;h | E60: jkmekfo ukiklj | F60: Leval- | G60: 16 | H60: 84000
A61: 56 | B61: x | C61: iz/kkukpk;Z | D61: LFkk;h | E61: jkmekfo ukiklj | F61: Leval- | G61: 16 | H61: 85000
A62: 57 | B62: x | C62: iz/kkukpk;Z | D62: LFkk;h | E62: jkmekfo ukiklj | F62: Leval- | G62: 16 | H62: 86000
A63: 58 | B63: x | C63: iz/kkukpk;Z | D63: LFkk;h | E63: jkmekfo ukiklj | F63: Leval- | G63: 16 | H63: 87000
A64: 59 | B64: x | C64: iz/kkukpk;Z | D64: LFkk;h | E64: jkmekfo ukiklj | F64: Leval- | G64: 16 | H64: 88000
A65: 60 | B65: x | C65: iz/kkukpk;Z | D65: LFkk;h | E65: jkmekfo ukiklj | F65: Leval- | G65: 16 | H65: 89000
A66: 61 | B66: x | C66: iz/kkukpk;Z | D66: LFkk;h | E66: jkmekfo ukiklj | F66: Leval- | G66: 16 | H66: 90000
A67: 62 | B67: x | C67: iz/kkukpk;Z | D67: LFkk;h | E67: jkmekfo ukiklj | F67: Leval- | G67: 16 | H67: 91000
A68: 63 | B68: x | C68: iz/kkukpk;Z | D68: LFkk;h | E68: jkmekfo ukiklj | F68: Leval- | G68: 16 | H68: 92000
A69: 64 | B69: x | C69: iz/kkukpk;Z | D69: LFkk;h | E69: jkmekfo ukiklj | F69: Leval- | G69: 16 | H69: 93000
A70: 65 | B70: x | C70: iz/kkukpk;Z | D70: LFkk;h | E70: jkmekfo ukiklj | F70: Leval- | G70: 16 | H70: 94000
A71: 66 | B71: x | C71: iz/kkukpk;Z | D71: LFkk;h | E71: jkmekfo ukiklj | F71: Leval- | G71: 16 | H71: 95000
A72: 67 | B72: x | C72: iz/kkukpk;Z | D72: LFkk;h | E72: jkmekfo ukiklj | F72: Leval- | G72: 16 | H72: 96000
A73: 68 | B73: x | C73: iz/kkukpk;Z | D73: LFkk;h | E73: jkmekfo ukiklj | F73: Leval- | G73: 16 | H73: 97000
A74: 69 | B74: x | C74: iz/kkukpk;Z | D74: LFkk;h | E74: jkmekfo ukiklj | F74: Leval- | G74: 16 | H74: 98000
A75: 70 | B75: x | C75: iz/kkukpk;Z | D75: LFkk;h | E75: jkmekfo ukiklj | F75: Leval- | G75: 16 | H75: 99000
A76: 71 | B76: x | C76: iz/kkukpk;Z | D76: LFkk;h | E76: jkmekfo ukiklj | F76: Leval- | G76: 16 | H76: 100000
A77: 72 | B77: x | C77: iz/kkukpk;Z | D77: LFkk;h | E77: jkmekfo ukiklj | F77: Leval- | G77: 16 | H77: 101000
A78: 73 | B78: x | C78: iz/kkukpk;Z | D78: LFkk;h | E78: jkmekfo ukiklj | F78: Leval- | G78: 16 | H78: 102000
A79: 74 | B79: x | C79: iz/kkukpk;Z | D79: LFkk;h | E79: jkmekfo ukiklj | F79: Leval- | G79: 16 | H79: 103000
A80: 75 | B80: pUnzs'k dqekj | C80: iz/kkukpk;Z | D80: LFkk;h | E80: jkmekfo ukiklj | F80: Leval- | G80: 16 | H80: 104000

Sheet 01.07.23 CBEO
A1: jktLFkku ljdkj
B2: dkfeZd ¼[k&1½ foHkkx
B3: fu;rdkyhu osru o`f} izek.k i= | D3: dk;kZy; %& | F3: =detail!$D$2 -> eq[; CykWd f'k{kk vf/kdkjh] chdkusj
B4: Schedule-1 | C4: Part `B` | D4: Rule No. 5(vi) and (vii) | E4: Pay Matrix of State Government Servants | J4: bl foHkkx dh vkKk | K4: ua-,Q15¼1½,QMh@:Yl@2017 | N4: t;iqj] | O4: fnukad | P4: 2017-12-30 | Q4: ds vuqlj.k esa
B5: 1 izekf.kr fd;k tkrk gS fd fuEufyf[kr jkT; deZpkjh us [kkuk la[;k 7esa cryk, x, fu;e ls fu/kkZfjr fu;rdkfyd osruo`f} vftZr dj yh gSa jkT; deZpkjh us [kkuk la[;k 6 dh rkjh[k ls fufnZ"V in ij u;s osrueku 2017 ds fu;ekuqlkj vof/k esa dk;Z fd;k gSA mDr vof/k dh x.kuk nqjkpj.k vkfn ds dkj.k fuyEcu dh vof/k] osru vodk'k] vuqifLFkfr dh vof/k o in dks LFkkukiUu :i ls /kkj.k djus dh fLFkfr esas lHkh izdkj ds vodk'kksa dh vof/k ?kVk dj dh xbZ gSA
A6: Ø-la- | B6: deZpkjh dk uke e; in | D6: =detail!$D$2 -> eq[; CykWd f'k{kk vf/kdkjh] chdkusj | E6: laLFkk;h ;k LFkkukiUUk | F6: is&eSfVªDl ysoy | H6: orZeku osru | I6: rkjh[k ftllasa orZeku osru izkIr fd;k tk jgk gS | J6: orZeku osru o`f} dh rkjh[k | K6: le lkef;d osru o`f) | L6: 0.03 | M6: Hkkoh osru | N6: nqjkpj.k ds fuyEcu vkSj ,slh vU; vuqifLFkfr ftldh x.kuk o`f} ds fy, ugha gksrh | P6: fcuk osru vkSj LFkkukuUu inkf/kdkjh;kss ds ekeyksa ds vU; lHkh izdkj ds vodk'k
D7: ifj{ks= ds dkfeZd dk inLFkkiu fo|ky; dk uke | K7: 0.03 | N7: rkjh[k ls | O7: rkjh[k rd | P7: rkjh[k ls | Q7: rkjh[k rd
B8: 1 | D8: 2 | E8: 3 | F8: 4 | H8: 5 | I8: 6 | J8: 7 | K8: 8 | L8: 7 | M8: 9 | N8: 10 | O8: 11 | P8: 12 | Q8: 13
A9: 1 | B9: =detail!B6 -> Jh lqfer fxjh | C9: =detail!C6 -> lgk0 iz0v0 | D9: =detail!E6 -> jkmekfo ukiklj | E9: =detail!D6 -> LFkk;h | F9: =detail!F6 -> Leval- | G9: =detail!G6 -> 16 | H9: =detail!H6 -> 95900 | I9: =detail!$D$3 -> 2022-07-01 | J9: =detail!$D$4 -> 2023-07-01 | K9: =ROUND(L9,-2) -> 2900 | L9: =H9*3/100 -> 2877 | M9: =H9+K9 -> 98800
A10: 2 | B10: =detail!B7 -> d | C10: =detail!C7 -> iz/kkukpk;Z | D10: =detail!E7 -> jkmekfo ukiklj | E10: =detail!D7 -> LFkk;h | F10: =detail!F7 -> Leval- | G10: =detail!G7 -> 16 | H10: =detail!H7 -> 80300 | I10: =detail!$D$3 -> 2022-07-01 | J10: =detail!$D$4 -> 2023-07-01 | K10: =ROUND(L10,-2) -> 2400 | L10: 2409 | M10: =H10+K10 -> 82700
A11: 3 | B11: =detail!B8 -> [k | C11: =detail!C8 -> iz/kkukpk;Z | D11: =detail!E8 -> jkmekfo ukiklj | E11: =detail!D8 -> LFkk;h | F11: =detail!F8 -> Leval- | G11: =detail!G8 -> 16 | H11: =detail!H8 -> 71400 | I11: =detail!$D$3 -> 2022-07-01 | J11: =detail!$D$4 -> 2023-07-01 | K11: =ROUND(L11,-2) -> 2100 | L11: 2142 | M11: =H11+K11 -> 73500
A12: 4 | B12: =detail!B9 -> x | C12: =detail!C9 -> iz/kkukpk;Z | D12: =detail!E9 -> jkmekfo ukiklj | E12: =detail!D9 -> LFkk;h | F12: =detail!F9 -> Leval- | G12: =detail!G9 -> 16 | H12: =detail!H9 -> 75700 | I12: =detail!$D$3 -> 2022-07-01 | J12: =detail!$D$4 -> 2023-07-01 | K12: 2300 | L12: 2271 | M12: =H12+K12 -> 78000
A13: 5 | B13: =detail!B10 -> ?k | C13: =detail!C10 -> iz/kkukpk;Z | D13: =detail!E10 -> jkmekfo ukiklj | E13: =detail!D10 -> LFkk;h | F13: =detail!F10 -> Leval- | G13: =detail!G10 -> 16 | H13: =detail!H10 -> 73500 | I13: =detail!$D$3 -> 2022-07-01 | J13: =detail!$D$4 -> 2023-07-01 | K13: 2200 | L13: =H13*3/100 -> 2205 | M13: =H13+K13 -> 75700
A14: 6 | B14: =detail!B11 -> ; | C14: =detail!C11 -> iz/kkukpk;Z | D14: =detail!E11 -> jkmekfo ukiklj | E14: =detail!D11 -> LFkk;h | F14: =detail!F11 -> Leval- | G14: =detail!G11 -> 16 | H14: =detail!H11 -> 35000 | I14: =detail!$D$3 -> 2022-07-01 | J14: =detail!$D$4 -> 2023-07-01 | K14: 1100 | L14: 1050 | M14: 36100
A15: 7 | B15: =detail!B12 -> j | C15: =detail!C12 -> iz/kkukpk;Z | D15: =detail!E12 -> jkmekfo ukiklj | E15: =detail!D12 -> LFkk;h | F15: =detail!F12 -> Leval- | G15: =detail!G12 -> 16 | H15: =detail!H12 -> 36000 | I15: =detail!$D$3 -> 2022-07-01 | J15: =detail!$D$4 -> 2023-07-01 | K15: 1100 | L15: 1080 | M15: 37100
A16: 8 | B16: =detail!B13 -> y | C16: =detail!C13 -> iz/kkukpk;Z | D16: =detail!E13 -> jkmekfo ukiklj | E16: =detail!D13 -> LFkk;h | F16: =detail!F13 -> Leval- | G16: =detail!G13 -> 16 | H16: =detail!H13 -> 37000 | I16: =detail!$D$3 -> 2022-07-01 | J16: =detail!$D$4 -> 2023-07-01 | K16: 1100 | L16: 1110 | M16: =H16+K16 -> 38100
A17: 9 | B17: =detail!B14 -> o | C17: =detail!C14 -> iz/kkukpk;Z | D17: =detail!E14 -> jkmekfo ukiklj | E17: =detail!D14 -> LFkk;h | F17: =detail!F14 -> Leval- | G17: =detail!G14 -> 16 | H17: =detail!H14 -> 38000 | I17: =detail!$D$3 -> 2022-07-01 | J17: =detail!$D$4 -> 2023-07-01 | K17: 1100 | L17: 1140 | M17: =H17+K17 -> 39100
A18: 10 | B18: =detail!B15 -> d | C18: =detail!C15 -> iz/kkukpk;Z | D18: =detail!E15 -> jkmekfo ukiklj | E18: =detail!D15 -> LFkk;h | F18: =detail!F15 -> Leval- | G18: =detail!G15 -> 16 | H18: =detail!H15 -> 39000 | I18: =detail!$D$3 -> 2022-07-01 | J18: =detail!$D$4 -> 2023-07-01 | K18: 1200 | L18: =H18*3/100 -> 1170 | M18: =H18+K18 -> 40200
A19: 11 | B19: =detail!B16 -> [k | C19: =detail!C16 -> iz/kkukpk;Z | D19: =detail!E16 -> jkmekfo ukiklj | E19: =detail!D16 -> LFkk;h | F19: =detail!F16 -> Leval- | G19: =detail!G16 -> 16 | H19: =detail!H16 -> 40000 | I19: =detail!$D$3 -> 2022-07-01 | J19: =detail!$D$4 -> 2023-07-01 | K19: 1200 | L19: =H19*3/100 -> 1200 | M19: 41200
A20: 12 | B20: =detail!B17 -> x | C20: =detail!C17 -> iz/kkukpk;Z | D20: =detail!E17 -> jkmekfo ukiklj | E20: =detail!D17 -> LFkk;h | F20: =detail!F17 -> Leval- | G20: =detail!G17 -> 16 | H20: =detail!H17 -> 41000 | I20: =detail!$D$3 -> 2022-07-01 | J20: =detail!$D$4 -> 2023-07-01 | K20: 1200 | L20: =H20*3/100 -> 1230 | M20: =H20+K20 -> 42200
A21: 13 | B21: =detail!B18 -> ?k | C21: =detail!C18 -> iz/kkukpk;Z | D21: =detail!E18 -> jkmekfo ukiklj | E21: =detail!D18 -> LFkk;h | F21: =detail!F18 -> Leval- | G21: =detail!G18 -> 16 | H21: =detail!H18 -> 42000 | I21: =detail!$D$3 -> 2022-07-01 | J21: =detail!$D$4 -> 2023-07-01 | K21: 1300 | L21: =H21*3/100 -> 1260 | M21: =H21+K21 -> 43300
A22: 14 | B22: =detail!B19 -> ; | C22: =detail!C19 -> iz/kkukpk;Z | D22: =detail!E19 -> jkmekfo ukiklj | E22: =detail!D19 -> LFkk;h | F22: =detail!F19 -> Leval- | G22: =detail!G19 -> 16 | H22: =detail!H19 -> 43000 | I22: =detail!$D$3 -> 2022-07-01 | J22: =detail!$D$4 -> 2023-07-01 | K22: 1300 | L22: 1290 | M22: =H22+K22 -> 44300
A23: 15 | B23: =detail!B20 -> j | C23: =detail!C20 -> iz/kkukpk;Z | D23: =detail!E20 -> jkmekfo ukiklj | E23: =detail!D20 -> LFkk;h | F23: =detail!F20 -> Leval- | G23: =detail!G20 -> 16 | H23: =detail!H20 -> 44000 | I23: =detail!$D$3 -> 2022-07-01 | J23: =detail!$D$4 -> 2023-07-01 | K23: 1300 | L23: =H23*3/100 -> 1320 | M23: =H23+K23 -> 45300
A24: 16 | B24: =detail!B21 -> y | C24: =detail!C21 -> iz/kkukpk;Z | D24: =detail!E21 -> jkmekfo ukiklj | E24: =detail!D21 -> LFkk;h | F24: =detail!F21 -> Leval- | G24: =detail!G21 -> 16 | H24: =detail!H21 -> 45000 | I24: =detail!$D$3 -> 2022-07-01 | J24: =detail!$D$4 -> 2023-07-01 | K24: 1400 | L24: =H24*3/100 -> 1350 | M24: =H24+K24 -> 46400
A25: 17 | B25: =detail!B22 -> o | C25: =detail!C22 -> iz/kkukpk;Z | D25: =detail!E22 -> jkmekfo ukiklj | E25: =detail!D22 -> LFkk;h | F25: =detail!F22 -> Leval- | G25: =detail!G22 -> 16 | H25: =detail!H22 -> 46000 | I25: =detail!$D$3 -> 2022-07-01 | J25: =detail!$D$4 -> 2023-07-01 | K25: 1400 | L25: =H25*3/100 -> 1380 | M25: =H25+K25 -> 47400
A26: 18 | B26: =detail!B23 -> d | C26: =detail!C23 -> iz/kkukpk;Z | D26: =detail!E23 -> jkmekfo ukiklj | E26: =detail!D23 -> LFkk;h | F26: =detail!F23 -> Leval- | G26: =detail!G23 -> 16 | H26: =detail!H23 -> 47000 | I26: =detail!$D$3 -> 2022-07-01 | J26: =detail!$D$4 -> 2023-07-01 | K26: =ROUND(L26,-2) -> 1400 | L26: =H26*3/100 -> 1410 | M26: =H26+K26 -> 48400
A27: 19 | B27: =detail!B24 -> [k | C27: =detail!C24 -> iz/kkukpk;Z | D27: =detail!E24 -> jkmekfo ukiklj | E27: =detail!D24 -> LFkk;h | F27: =detail!F24 -> Leval- | G27: =detail!G24 -> 16 | H27: =detail!H24 -> 48000 | I27: =detail!$D$3 -> 2022-07-01 | J27: =detail!$D$4 -> 2023-07-01 | K27: 1400 | L27: 1440 | M27: 49400
A28: 20 | B28: =detail!B25 -> x | C28: =detail!C25 -> iz/kkukpk;Z | D28: =detail!E25 -> jkmekfo ukiklj | E28: =detail!D25 -> LFkk;h | F28: =detail!F25 -> Leval- | G28: =detail!G25 -> 16 | H28: =detail!H25 -> 49000 | I28: =detail!$D$3 -> 2022-07-01 | J28: =detail!$D$4 -> 2023-07-01 | K28: 1500 | L28: 1470 | M28: 50500
A29: 21 | B29: =detail!B26 -> x | C29: =detail!C26 -> iz/kkukpk;Z | D29: =detail!E26 -> jkmekfo ukiklj | E29: =detail!D26 -> LFkk;h | F29: =detail!F26 -> Leval- | G29: =detail!G26 -> 16 | H29: =detail!H26 -> 50000 | I29: =detail!$D$3 -> 2022-07-01 | J29: =detail!$D$4 -> 2023-07-01 | K29: =ROUND(L29,-2) -> 1500 | L29: =H29*3/100 -> 1500 | M29: =H29+K29 -> 51500
A30: 22 | B30: =detail!B27 -> x | C30: =detail!C27 -> iz/kkukpk;Z | D30: =detail!E27 -> jkmekfo ukiklj | E30: =detail!D27 -> LFkk;h | F30: =detail!F27 -> Leval- | G30: =detail!G27 -> 16 | H30: =detail!H27 -> 51000 | I30: =detail!$D$3 -> 2022-07-01 | J30: =detail!$D$4 -> 2023-07-01 | K30: 1500 | L30: 1530 | M30: 52500
A31: 23 | B31: =detail!B28 -> x | C31: =detail!C28 -> iz/kkukpk;Z | D31: =detail!E28 -> jkmekfo ukiklj | E31: =detail!D28 -> LFkk;h | F31: =detail!F28 -> Leval- | G31: =detail!G28 -> 16 | H31: =detail!H28 -> 52000 | I31: =detail!$D$3 -> 2022-07-01 | J31: =detail!$D$4 -> 2023-07-01 | K31: 1600 | L31: 1560 | M31: 53600
A32: 24 | B32: =detail!B29 -> x | C32: =detail!C29 -> iz/kkukpk;Z | D32: =detail!E29 -> jkmekfo ukiklj | E32: =detail!D29 -> LFkk;h | F32: =detail!F29 -> Leval- | G32: =detail!G29 -> 16 | H32: =detail!H29 -> 53000 | I32: =detail!$D$3 -> 2022-07-01 | J32: =detail!$D$4 -> 2023-07-01 | K32: 1600 | L32: 1590 | M32: 54600
A33: 25 | B33: =detail!B30 -> x | C33: =detail!C30 -> iz/kkukpk;Z | D33: =detail!E30 -> jkmekfo ukiklj | E33: =detail!D30 -> LFkk;h | F33: =detail!F30 -> Leval- | G33: =detail!G30 -> 16 | H33: =detail!H30 -> 54000 | I33: =detail!$D$3 -> 2022-07-01 | J33: =detail!$D$4 -> 2023-07-01 | K33: 1600 | L33: 1620 | M33: 55600
A34: 26 | B34: =detail!B31 -> x | C34: =detail!C31 -> iz/kkukpk;Z | D34: =detail!E31 -> jkmekfo ukiklj | E34: =detail!D31 -> LFkk;h | F34: =detail!F31 -> Leval- | G34: =detail!G31 -> 16 | H34: =detail!H31 -> 55000 | I34: =detail!$D$3 -> 2022-07-01 | J34: =detail!$D$4 -> 2023-07-01 | K34: 1700 | L34: 1650 | M34: 56700
A35: 27 | B35: =detail!B32 -> x | C35: =detail!C32 -> iz/kkukpk;Z | D35: =detail!E32 -> jkmekfo ukiklj | E35: =detail!D32 -> LFkk;h | F35: =detail!F32 -> Leval- | G35: =detail!G32 -> 16 | H35: =detail!H32 -> 56000 | I35: =detail!$D$3 -> 2022-07-01 | J35: =detail!$D$4 -> 2023-07-01 | K35: 1700 | L35: 1680 | M35: 57700
A36: 28 | B36: =detail!B33 -> x | C36: =detail!C33 -> iz/kkukpk;Z | D36: =detail!E33 -> jkmekfo ukiklj | E36: =detail!D33 -> LFkk;h | F36: =detail!F33 -> Leval- | G36: =detail!G33 -> 16 | H36: =detail!H33 -> 57000 | I36: =detail!$D$3 -> 2022-07-01 | J36: =detail!$D$4 -> 2023-07-01 | K36: 1700 | L36: 1710 | M36: 58700
A37: 29 | B37: =detail!B34 -> x | C37: =detail!C34 -> iz/kkukpk;Z | D37: =detail!E34 -> jkmekfo ukiklj | E37: =detail!D34 -> LFkk;h | F37: =detail!F34 -> Leval- | G37: =detail!G34 -> 16 | H37: =detail!H34 -> 58000 | I37: =detail!$D$3 -> 2022-07-01 | J37: =detail!$D$4 -> 2023-07-01 | K37: 1700 | L37: 1740 | M37: 59700
A38: 30 | B38: =detail!B35 -> x | C38: =detail!C35 -> iz/kkukpk;Z | D38: =detail!E35 -> jkmekfo ukiklj | E38: =detail!D35 -> LFkk;h | F38: =detail!F35 -> Leval- | G38: =detail!G35 -> 16 | H38: =detail!H35 -> 59000 | I38: =detail!$D$3 -> 2022-07-01 | J38: =detail!$D$4 -> 2023-07-01 | K38: 1800 | L38: 1770 | M38: 60800
A39: 31 | B39: =detail!B36 -> x | C39: =detail!C36 -> iz/kkukpk;Z | D39: =detail!E36 -> jkmekfo ukiklj | E39: =detail!D36 -> LFkk;h | F39: =detail!F36 -> Leval- | G39: =detail!G36 -> 16 | H39: =detail!H36 -> 60000 | I39: =detail!$D$3 -> 2022-07-01 | J39: =detail!$D$4 -> 2023-07-01 | K39: 1800 | L39: 1800 | M39: 61800
A40: 32 | B40: =detail!B37 -> x | C40: =detail!C37 -> iz/kkukpk;Z | D40: =detail!E37 -> jkmekfo ukiklj | E40: =detail!D37 -> LFkk;h | F40: =detail!F37 -> Leval- | G40: =detail!G37 -> 16 | H40: =detail!H37 -> 61000 | I40: =detail!$D$3 -> 2022-07-01 | J40: =detail!$D$4 -> 2023-07-01 | K40: 1800 | L40: 1830 | M40: 62800
A41: 33 | B41: =detail!B38 -> x | C41: =detail!C38 -> iz/kkukpk;Z | D41: =detail!E38 -> jkmekfo ukiklj | E41: =detail!D38 -> LFkk;h | F41: =detail!F38 -> Leval- | G41: =detail!G38 -> 16 | H41: =detail!H38 -> 62000 | I41: =detail!$D$3 -> 2022-07-01 | J41: =detail!$D$4 -> 2023-07-01 | K41: 1900 | L41: 1860 | M41: 63900
A42: 34 | B42: =detail!B39 -> x | C42: =detail!C39 -> iz/kkukpk;Z | D42: =detail!E39 -> jkmekfo ukiklj | E42: =detail!D39 -> LFkk;h | F42: =detail!F39 -> Leval- | G42: =detail!G39 -> 16 | H42: =detail!H39 -> 63000 | I42: =detail!$D$3 -> 2022-07-01 | J42: =detail!$D$4 -> 2023-07-01 | K42: 1900 | L42: 1890 | M42: 64900
A43: 35 | B43: =detail!B40 -> x | C43: =detail!C40 -> iz/kkukpk;Z | D43: =detail!E40 -> jkmekfo ukiklj | E43: =detail!D40 -> LFkk;h | F43: =detail!F40 -> Leval- | G43: =detail!G40 -> 16 | H43: =detail!H40 -> 64000 | I43: =detail!$D$3 -> 2022-07-01 | J43: =detail!$D$4 -> 2023-07-01 | K43: 1900 | L43: 1920 | M43: 65900
A44: 36 | B44: =detail!B41 -> x | C44: =detail!C41 -> iz/kkukpk;Z | D44: =detail!E41 -> jkmekfo ukiklj | E44: =detail!D41 -> LFkk;h | F44: =detail!F41 -> Leval- | G44: =detail!G41 -> 16 | H44: =detail!H41 -> 65000 | I44: =detail!$D$3 -> 2022-07-01 | J44: =detail!$D$4 -> 2023-07-01 | K44: 2000 | L44: 1950 | M44: 67000
A45: 37 | B45: =detail!B42 -> x | C45: =detail!C42 -> iz/kkukpk;Z | D45: =detail!E42 -> jkmekfo ukiklj | E45: =detail!D42 -> LFkk;h | F45: =detail!F42 -> Leval- | G45: =detail!G42 -> 16 | H45: =detail!H42 -> 66000 | I45: =detail!$D$3 -> 2022-07-01 | J45: =detail!$D$4 -> 2023-07-01 | K45: 2000 | L45: 1980 | M45: 68000
A46: 38 | B46: =detail!B43 -> x | C46: =detail!C43 -> iz/kkukpk;Z | D46: =detail!E43 -> jkmekfo ukiklj | E46: =detail!D43 -> LFkk;h | F46: =detail!F43 -> Leval- | G46: =detail!G43 -> 16 | H46: =detail!H43 -> 67000 | I46: =detail!$D$3 -> 2022-07-01 | J46: =detail!$D$4 -> 2023-07-01 | K46: 2000 | L46: 2010 | M46: 69000
A47: 39 | B47: =detail!B44 -> x | C47: =detail!C44 -> iz/kkukpk;Z | D47: =detail!E44 -> jkmekfo ukiklj | E47: =detail!D44 -> LFkk;h | F47: =detail!F44 -> Leval- | G47: =detail!G44 -> 16 | H47: =detail!H44 -> 68000 | I47: =detail!$D$3 -> 2022-07-01 | J47: =detail!$D$4 -> 2023-07-01 | K47: 2000 | L47: 2040 | M47: 70000
A48: 40 | B48: =detail!B45 -> x | C48: =detail!C45 -> iz/kkukpk;Z | D48: =detail!E45 -> jkmekfo ukiklj | E48: =detail!D45 -> LFkk;h | F48: =detail!F45 -> Leval- | G48: =detail!G45 -> 16 | H48: =detail!H45 -> 69000 | I48: =detail!$D$3 -> 2022-07-01 | J48: =detail!$D$4 -> 2023-07-01 | K48: 2100 | L48: 2070 | M48: 71100
A49: 41 | B49: =detail!B46 -> x | C49: =detail!C46 -> iz/kkukpk;Z | D49: =detail!E46 -> jkmekfo ukiklj | E49: =detail!D46 -> LFkk;h | F49: =detail!F46 -> Leval- | G49: =detail!G46 -> 16 | H49: =detail!H46 -> 70000 | I49: =detail!$D$3 -> 2022-07-01 | J49: =detail!$D$4 -> 2023-07-01 | K49: 2100 | L49: 2100 | M49: 72100
A50: 42 | B50: =detail!B47 -> x | C50: =detail!C47 -> iz/kkukpk;Z | D50: =detail!E47 -> jkmekfo ukiklj | E50: =detail!D47 -> LFkk;h | F50: =detail!F47 -> Leval- | G50: =detail!G47 -> 16 | H50: =detail!H47 -> 71000 | I50: =detail!$D$3 -> 2022-07-01 | J50: =detail!$D$4 -> 2023-07-01 | K50: 2100 | L50: 2130 | M50: 73100
A51: 43 | B51: =detail!B48 -> x | C51: =detail!C48 -> iz/kkukpk;Z | D51: =detail!E48 -> jkmekfo ukiklj | E51: =detail!D48 -> LFkk;h | F51: =detail!F48 -> Leval- | G51: =detail!G48 -> 16 | H51: =detail!H48 -> 72000 | I51: =detail!$D$3 -> 2022-07-01 | J51: =detail!$D$4 -> 2023-07-01 | K51: 2200 | L51: 2160 | M51: 74200
A52: 44 | B52: =detail!B49 -> x | C52: =detail!C49 -> iz/kkukpk;Z | D52: =detail!E49 -> jkmekfo ukiklj | E52: =detail!D49 -> LFkk;h | F52: =detail!F49 -> Leval- | G52: =detail!G49 -> 16 | H52: =detail!H49 -> 73000 | I52: =detail!$D$3 -> 2022-07-01 | J52: =detail!$D$4 -> 2023-07-01 | K52: 2200 | L52: 2190 | M52: 75200
A53: 45 | B53: =detail!B50 -> x | C53: =detail!C50 -> iz/kkukpk;Z | D53: =detail!E50 -> jkmekfo ukiklj | E53: =detail!D50 -> LFkk;h | F53: =detail!F50 -> Leval- | G53: =detail!G50 -> 16 | H53: =detail!H50 -> 74000 | I53: =detail!$D$3 -> 2022-07-01 | J53: =detail!$D$4 -> 2023-07-01 | K53: 2200 | L53: 2220 | M53: 76200
A54: 46 | B54: =detail!B51 -> x | C54: =detail!C51 -> iz/kkukpk;Z | D54: =detail!E51 -> jkmekfo ukiklj | E54: =detail!D51 -> LFkk;h | F54: =detail!F51 -> Leval- | G54: =detail!G51 -> 16 | H54: =detail!H51 -> 75000 | I54: =detail!$D$3 -> 2022-07-01 | J54: =detail!$D$4 -> 2023-07-01 | K54: 2300 | L54: 2250 | M54: 77300
A55: 47 | B55: =detail!B52 -> x | C55: =detail!C52 -> iz/kkukpk;Z | D55: =detail!E52 -> jkmekfo ukiklj | E55: =detail!D52 -> LFkk;h | F55: =detail!F52 -> Leval- | G55: =detail!G52 -> 16 | H55: =detail!H52 -> 76000 | I55: =detail!$D$3 -> 2022-07-01 | J55: =detail!$D$4 -> 2023-07-01 | K55: 2300 | L55: 2280 | M55: 78300
A56: 48 | B56: =detail!B53 -> x | C56: =detail!C53 -> iz/kkukpk;Z | D56: =detail!E53 -> jkmekfo ukiklj | E56: =detail!D53 -> LFkk;h | F56: =detail!F53 -> Leval- | G56: =detail!G53 -> 16 | H56: =detail!H53 -> 77000 | I56: =detail!$D$3 -> 2022-07-01 | J56: =detail!$D$4 -> 2023-07-01 | K56: 2300 | L56: 2310 | M56: 79300
A57: 49 | B57: =detail!B54 -> x | C57: =detail!C54 -> iz/kkukpk;Z | D57: =detail!E54 -> jkmekfo ukiklj | E57: =detail!D54 -> LFkk;h | F57: =detail!F54 -> Leval- | G57: =detail!G54 -> 16 | H57: =detail!H54 -> 78000 | I57: =detail!$D$3 -> 2022-07-01 | J57: =detail!$D$4 -> 2023-07-01 | K57: 2300 | L57: 2340 | M57: 80300
A58: 50 | B58: =detail!B55 -> x | C58: =detail!C55 -> iz/kkukpk;Z | D58: =detail!E55 -> jkmekfo ukiklj | E58: =detail!D55 -> LFkk;h | F58: =detail!F55 -> Leval- | G58: =detail!G55 -> 16 | H58: =detail!H55 -> 79000 | I58: =detail!$D$3 -> 2022-07-01 | J58: =detail!$D$4 -> 2023-07-01 | K58: 2400 | L58: 2370 | M58: 81400
A59: 51 | B59: =detail!B56 -> x | C59: =detail!C56 -> iz/kkukpk;Z | D59: =detail!E56 -> jkmekfo ukiklj | E59: =detail!D56 -> LFkk;h | F59: =detail!F56 -> Leval- | G59: =detail!G56 -> 16 | H59: =detail!H56 -> 80000 | I59: =detail!$D$3 -> 2022-07-01 | J59: =detail!$D$4 -> 2023-07-01 | K59: 2400 | L59: 2400 | M59: 82400
A60: 52 | B60: =detail!B57 -> x | C60: =detail!C57 -> iz/kkukpk;Z | D60: =detail!E57 -> jkmekfo ukiklj | E60: =detail!D57 -> LFkk;h | F60: =detail!F57 -> Leval- | G60: =detail!G57 -> 16 | H60: =detail!H57 -> 81000 | I60: =detail!$D$3 -> 2022-07-01 | J60: =detail!$D$4 -> 2023-07-01 | K60: 2400 | L60: 2430 | M60: 83400
A61: 53 | B61: =detail!B58 -> x | C61: =detail!C58 -> iz/kkukpk;Z | D61: =detail!E58 -> jkmekfo ukiklj | E61: =detail!D58 -> LFkk;h | F61: =detail!F58 -> Leval- | G61: =detail!G58 -> 16 | H61: =detail!H58 -> 82000 | I61: =detail!$D$3 -> 2022-07-01 | J61: =detail!$D$4 -> 2023-07-01 | K61: 2500 | L61: 2460 | M61: 84500
A62: 54 | B62: =detail!B59 -> x | C62: =detail!C59 -> iz/kkukpk;Z | D62: =detail!E59 -> jkmekfo ukiklj | E62: =detail!D59 -> LFkk;h | F62: =detail!F59 -> Leval- | G62: =detail!G59 -> 16 | H62: =detail!H59 -> 83000 | I62: =detail!$D$3 -> 2022-07-01 | J62: =detail!$D$4 -> 2023-07-01 | K62: 2500 | L62: 2490 | M62: 85500
A63: 55 | B63: =detail!B60 -> x | C63: =detail!C60 -> iz/kkukpk;Z | D63: =detail!E60 -> jkmekfo ukiklj | E63: =detail!D60 -> LFkk;h | F63: =detail!F60 -> Leval- | G63: =detail!G60 -> 16 | H63: =detail!H60 -> 84000 | I63: =detail!$D$3 -> 2022-07-01 | J63: =detail!$D$4 -> 2023-07-01 | K63: 2500 | L63: 2520 | M63: 86500
A64: 56 | B64: =detail!B61 -> x | C64: =detail!C61 -> iz/kkukpk;Z | D64: =detail!E61 -> jkmekfo ukiklj | E64: =detail!D61 -> LFkk;h | F64: =detail!F61 -> Leval- | G64: =detail!G61 -> 16 | H64: =detail!H61 -> 85000 | I64: =detail!$D$3 -> 2022-07-01 | J64: =detail!$D$4 -> 2023-07-01 | K64: 2600 | L64: 2550 | M64: 87600
A65: 57 | B65: =detail!B62 -> x | C65: =detail!C62 -> iz/kkukpk;Z | D65: =detail!E62 -> jkmekfo ukiklj | E65: =detail!D62 -> LFkk;h | F65: =detail!F62 -> Leval- | G65: =detail!G62 -> 16 | H65: =detail!H62 -> 86000 | I65: =detail!$D$3 -> 2022-07-01 | J65: =detail!$D$4 -> 2023-07-01 | K65: 2600 | L65: 2580 | M65: 88600
A66: 58 | B66: =detail!B63 -> x | C66: =detail!C63 -> iz/kkukpk;Z | D66: =detail!E63 -> jkmekfo ukiklj | E66: =detail!D63 -> LFkk;h | F66: =detail!F63 -> Leval- | G66: =detail!G63 -> 16 | H66: =detail!H63 -> 87000 | I66: =detail!$D$3 -> 2022-07-01 | J66: =detail!$D$4 -> 2023-07-01 | K66: 2600 | L66: 2610 | M66: 89600
A67: 59 | B67: =detail!B64 -> x | C67: =detail!C64 -> iz/kkukpk;Z | D67: =detail!E64 -> jkmekfo ukiklj | E67: =detail!D64 -> LFkk;h | F67: =detail!F64 -> Leval- | G67: =detail!G64 -> 16 | H67: =detail!H64 -> 88000 | I67: =detail!$D$3 -> 2022-07-01 | J67: =detail!$D$4 -> 2023-07-01 | K67: 2600 | L67: 2640 | M67: 90600
A68: 60 | B68: =detail!B65 -> x | C68: =detail!C65 -> iz/kkukpk;Z | D68: =detail!E65 -> jkmekfo ukiklj | E68: =detail!D65 -> LFkk;h | F68: =detail!F65 -> Leval- | G68: =detail!G65 -> 16 | H68: =detail!H65 -> 89000 | I68: =detail!$D$3 -> 2022-07-01 | J68: =detail!$D$4 -> 2023-07-01 | K68: 2700 | L68: 2670 | M68: 91700
A69: 61 | B69: =detail!B66 -> x | C69: =detail!C66 -> iz/kkukpk;Z | D69: =detail!E66 -> jkmekfo ukiklj | E69: =detail!D66 -> LFkk;h | F69: =detail!F66 -> Leval- | G69: =detail!G66 -> 16 | H69: =detail!H66 -> 90000 | I69: =detail!$D$3 -> 2022-07-01 | J69: =detail!$D$4 -> 2023-07-01 | K69: 2700 | L69: 2700 | M69: 92700
A70: 62 | B70: =detail!B67 -> x | C70: =detail!C67 -> iz/kkukpk;Z | D70: =detail!E67 -> jkmekfo ukiklj | E70: =detail!D67 -> LFkk;h | F70: =detail!F67 -> Leval- | G70: =detail!G67 -> 16 | H70: =detail!H67 -> 91000 | I70: =detail!$D$3 -> 2022-07-01 | J70: =detail!$D$4 -> 2023-07-01 | K70: 2700 | L70: 2730 | M70: 93700
A71: 63 | B71: =detail!B68 -> x | C71: =detail!C68 -> iz/kkukpk;Z | D71: =detail!E68 -> jkmekfo ukiklj | E71: =detail!D68 -> LFkk;h | F71: =detail!F68 -> Leval- | G71: =detail!G68 -> 16 | H71: =detail!H68 -> 92000 | I71: =detail!$D$3 -> 2022-07-01 | J71: =detail!$D$4 -> 2023-07-01 | K71: 2800 | L71: 2760 | M71: 94800
A72: 64 | B72: =detail!B69 -> x | C72: =detail!C69 -> iz/kkukpk;Z | D72: =detail!E69 -> jkmekfo ukiklj | E72: =detail!D69 -> LFkk;h | F72: =detail!F69 -> Leval- | G72: =detail!G69 -> 16 | H72: =detail!H69 -> 93000 | I72: =detail!$D$3 -> 2022-07-01 | J72: =detail!$D$4 -> 2023-07-01 | K72: 2800 | L72: 2790 | M72: 95800
A73: 65 | B73: =detail!B70 -> x | C73: =detail!C70 -> iz/kkukpk;Z | D73: =detail!E70 -> jkmekfo ukiklj | E73: =detail!D70 -> LFkk;h | F73: =detail!F70 -> Leval- | G73: =detail!G70 -> 16 | H73: =detail!H70 -> 94000 | I73: =detail!$D$3 -> 2022-07-01 | J73: =detail!$D$4 -> 2023-07-01 | K73: 2800 | L73: 2820 | M73: 96800
A74: 66 | B74: =detail!B71 -> x | C74: =detail!C71 -> iz/kkukpk;Z | D74: =detail!E71 -> jkmekfo ukiklj | E74: =detail!D71 -> LFkk;h | F74: =detail!F71 -> Leval- | G74: =detail!G71 -> 16 | H74: =detail!H71 -> 95000 | I74: =detail!$D$3 -> 2022-07-01 | J74: =detail!$D$4 -> 2023-07-01 | K74: 2900 | L74: 2850 | M74: 97900
A75: 67 | B75: =detail!B72 -> x | C75: =detail!C72 -> iz/kkukpk;Z | D75: =detail!E72 -> jkmekfo ukiklj | E75: =detail!D72 -> LFkk;h | F75: =detail!F72 -> Leval- | G75: =detail!G72 -> 16 | H75: =detail!H72 -> 96000 | I75: =detail!$D$3 -> 2022-07-01 | J75: =detail!$D$4 -> 2023-07-01 | K75: 2900 | L75: 2880 | M75: 98900
A76: 68 | B76: =detail!B73 -> x | C76: =detail!C73 -> iz/kkukpk;Z | D76: =detail!E73 -> jkmekfo ukiklj | E76: =detail!D73 -> LFkk;h | F76: =detail!F73 -> Leval- | G76: =detail!G73 -> 16 | H76: =detail!H73 -> 97000 | I76: =detail!$D$3 -> 2022-07-01 | J76: =detail!$D$4 -> 2023-07-01 | K76: 2900 | L76: 2910 | M76: 99900
A77: 69 | B77: =detail!B74 -> x | C77: =detail!C74 -> iz/kkukpk;Z | D77: =detail!E74 -> jkmekfo ukiklj | E77: =detail!D74 -> LFkk;h | F77: =detail!F74 -> Leval- | G77: =detail!G74 -> 16 | H77: =detail!H74 -> 98000 | I77: =detail!$D$3 -> 2022-07-01 | J77: =detail!$D$4 -> 2023-07-01 | K77: 2900 | L77: 2940 | M77: 100900
A78: 70 | B78: =detail!B75 -> x | C78: =detail!C75 -> iz/kkukpk;Z | D78: =detail!E75 -> jkmekfo ukiklj | E78: =detail!D75 -> LFkk;h | F78: =detail!F75 -> Leval- | G78: =detail!G75 -> 16 | H78: =detail!H75 -> 99000 | I78: =detail!$D$3 -> 2022-07-01 | J78: =detail!$D$4 -> 2023-07-01 | K78: 3000 | L78: 2970 | M78: 102000
A79: 71 | B79: =detail!B76 -> x | C79: =detail!C76 -> iz/kkukpk;Z | D79: =detail!E76 -> jkmekfo ukiklj | E79: =detail!D76 -> LFkk;h | F79: =detail!F76 -> Leval- | G79: =detail!G76 -> 16 | H79: =detail!H76 -> 100000 | I79: =detail!$D$3 -> 2022-07-01 | J79: =detail!$D$4 -> 2023-07-01 | K79: =ROUND(L79,-2) -> 3000 | L79: =H79*3/100 -> 3000 | M79: =H79+K79 -> 103000
A80: 72 | B80: =detail!B77 -> x | C80: =detail!C77 -> iz/kkukpk;Z | D80: =detail!E77 -> jkmekfo ukiklj | E80: =detail!D77 -> LFkk;h | F80: =detail!F77 -> Leval- | G80: =detail!G77 -> 16 | H80: =detail!H77 -> 101000 | I80: =detail!$D$3 -> 2022-07-01 | J80: =detail!$D$4 -> 2023-07-01 | K80: 3000 | L80: 3030 | M80: 104000
A81: 73 | B81: =detail!B78 -> x | C81: =detail!C78 -> iz/kkukpk;Z | D81: =detail!E78 -> jkmekfo ukiklj | E81: =detail!D78 -> LFkk;h | F81: =detail!F78 -> Leval- | G81: =detail!G78 -> 16 | H81: =detail!H78 -> 102000 | I81: =detail!$D$3 -> 2022-07-01 | J81: =detail!$D$4 -> 2023-07-01 | K81: 3100 | L81: 3060 | M81: 105100
A82: 74 | B82: =detail!B79 -> x | C82: =detail!C79 -> iz/kkukpk;Z | D82: =detail!E79 -> jkmekfo ukiklj | E82: =detail!D79 -> LFkk;h | F82: =detail!F79 -> Leval- | G82: =detail!G79 -> 16 | H82: =detail!H79 -> 103000 | I82: =detail!$D$3 -> 2022-07-01 | J82: =detail!$D$4 -> 2023-07-01 | K82: 3100 | L82: 3090 | M82: 106100
A83: 75 | B83: =detail!B80 -> pUnzs'k dqekj | C83: =detail!C80 -> iz/kkukpk;Z | D83: =detail!E80 -> jkmekfo ukiklj | E83: =detail!D80 -> LFkk;h | F83: =detail!F80 -> Leval- | G83: =detail!G80 -> 16 | H83: =detail!H80 -> 104000 | I83: =detail!$D$3 -> 2022-07-01 | J83: =detail!$D$4 -> 2023-07-01 | K83: 3100 | L83: 3120 | M83: 107100
B85: izekf.kr fd;k tkrk gS fd jktLFkku lsok fu;e 31ds vuqlkj mi;qZDr vodk'k dh x.kuk ml in ds le;eku esa osru o`f} ds fy, ekU; gksrh gS ftl ij mi;qZDr jkT; deZpkjh vodk'k tkrs le; LFkkukiUu fLFkfr esa dk;Z dj jgk Fkk vkSj og vodk'k ij ugha tkrk rks aLFkkukiUu fLFkfr esa dk;Z djrk jgrkA
M86: =detail!$D$2 -> eq[; CykWd f'k{kk vf/kdkjh] chdkusj
B88: Øekad %& | C88: -------------------------------------------------- | J88: fnukad | K88: ------------------------------
B89: uksV%& 1 dkj.k la[;k ¼1½ ;k ¼2½ izR;sd uke ds vkxs fy[kh tkuh pkfg,A ftl izzdj.k esa dkj.k la[;k ¼2½ Hkkx gksrk gS og Li"Vhdj.k Kkiu layXu djuk pkfg,A
B90: la[;k%& ua-,Q15¼1½,QMh@:Yl@2017 t;iqj fnukad%& 30-10-2017
B91: 2 vuqHkkxkf/kdkjh] dkfeZd ¼x½ foHkkx 'kklu lfpoky; dks vfrfjDr izfr lfgr lwpukFkZ ,oa vko';d dk;Zokgh gsrq izsf"kr gSA
B92: 3 lacaf/kr O;fDr@dkfeZd A
B93: 4 futh i=koyh @jf{kr i=koyhA
B94: 5 Jheku dks"kkf/kdkjh@midks"kkf/kdkjh-------------------------------------A
M95: =M86 -> eq[; CykWd f'k{kk vf/kdkjh] chdkusj

Sheet Metrix chart
A1: Pay Metrix of State Government Servents wef 01-10-2017
A2: Existing Pay Band | B2: PB-1 (5200-20200) | K2: PB-2 (9300-34800) | O2: PB-3 (15600-39100) | V2: PB-4 (37400-67000) | AA2: =RIGHT(AA4,LEN(AA4)-2)+1 -> 13 | AB2: =CONCATENATE("L-",AA2) -> L-13
A3: Existing Grade Pay | B3: 1700 | C3: 1750 | D3: 1900 | E3: 2000 | F3: 2400 | G3: 2400 | H3: 2400 | I3: 2800 | J3: 2800 | K3: 3600 | L3: 4200 | M3: 4800 | N3: 5400 | O3: 5400 | P3: 6000 | Q3: 6600 | R3: 6800 | S3: 7200 | T3: 7600 | U3: 8200 | V3: 8700 | W3: 8900 | X3: 9500 | Y3: 10000 | AA3: =[1]Entry!E11 -> 59500 | AB3: =ROUND(AA5*3%,-2)+AA5 -> 61300
A4: Existing Grade Pay No. | B4: 2 | C4: 3 | D4: 4 | E4: 5 | F4: 9 | G4: 9A | H4: 9B | I4: 10 | J4: 10A | K4: 11 | L4: 12 | M4: 13 | N4: 15 | O4: 15 | P4: 16 | Q4: 17 | R4: 18 | S4: 19 | T4: 20 | U4: 21 | V4: 22 | W4: 23 | X4: 23A | Y4: 24 | AA4: =[1]Entry!G11 -> L-12 | AB4: =AB2 -> L-13
A5: Level | B5: L-1 | C5: L-2 | D5: L-3 | E5: L-4 | F5: L-5 | G5: L-6 | H5: L-7 | I5: L-8 | J5: L-9 | K5: L-10 | L5: L-11 | M5: L-12 | N5: L-13 | O5: L-14 | P5: L-15 | Q5: L-16 | R5: L-17 | S5: L-18 | T5: L-19 | U5: L-20 | V5: L-21 | W5: L-22 | X5: L-23 | Y5: L-24 | AA5: =INDEX($AA$7:$AA$46,MATCH(TRUE,INDEX($AA$7:$AA$46>=AA3,0),)) -> 59500 | AB5: =INDEX($AB$7:$AB$46,MATCH(TRUE,INDEX($AB$7:$AB$46>=AB3,0),)) -> 61500
A6: Cell No. | B6: Pay Metrix (Amount in Rs.)
A7: 1 | B7: 17700 | C7: 17900 | D7: 18200 | E7: 19200 | F7: 20800 | G7: 21500 | H7: 22400 | I7: 26300 | J7: 28700 | K7: 33800 | L7: 37800 | M7: 44300 | N7: 53100 | O7: 56100 | P7: 60700 | Q7: 67300 | R7: 71000 | S7: 75300 | T7: 79900 | U7: 88900 | V7: 123100 | W7: 129700 | X7: 145800 | Y7: 148800 | AA7: =IF($AA$4="L-1",B7,IF($AA$4="L-2",C7,IF($AA$4="L-3",D7,IF($AA$4="L-4",E7,IF($AA$4="L-5",F7,IF($AA$4="L-6",G7,IF($AA$4="L-7",H7,IF($AA$4="L-8",I7,IF($AA$4="L-9",J7,IF($AA$4="L-10",K7,IF($AA$4="L-11",L7,IF($AA$4="L-12",M7,IF($AA$4="L-13",N7,IF($AA$4="L-14",O7,IF($AA$4="L-15",P7,IF($AA$4="L-16",Q7,IF($AA$4="L-17",R7,IF($AA$4="L-18",S7,IF($AA$4="L-19",T7,IF($AA$4="L-20",U7,IF($AA$4="L-21",V7,IF($AA$4="L-22",W7,IF($AA$4="L-23",X7,IF($AA$4="L-24",Y7,"")))))))))))))))))))))))) -> 44300 | AB7: =IF($AB$4="L-1",B7,IF($AB$4="L-2",C7,IF($AB$4="L-3",D7,IF($AB$4="L-4",E7,IF($AB$4="L-5",F7,IF($AB$4="L-6",G7,IF($AB$4="L-7",H7,IF($AB$4="L-8",I7,IF($AB$4="L-9",J7,IF($AB$4="L-10",K7,IF($AB$4="L-11",L7,IF($AB$4="L-12",M7,IF($AB$4="L-13",N7,IF($AB$4="L-14",O7,IF($AB$4="L-15",P7,IF($AB$4="L-16",Q7,IF($AB$4="L-17",R7,IF($AB$4="L-18",S7,IF($AB$4="L-19",T7,IF($AB$4="L-20",U7,IF($AB$4="L-21",V7,IF($AB$4="L-22",W7,IF($AB$4="L-23",X7,IF($AB$4="L-24",Y7,"")))))))))))))))))))))))) -> 53100
A8: 2 | B8: 18200 | C8: 18400 | D8: 18700 | E8: 19800 | F8: 21400 | G8: 22100 | H8: 23100 | I8: 27100 | J8: 29600 | K8: 34800 | L8: 38900 | M8: 45600 | N8: 54700 | O8: 57800 | P8: 62500 | Q8: 69300 | R8: 73100 | S8: 77600 | T8: 82300 | U8: 91600 | V8: 126800 | W8: 133600 | X8: 150200 | Y8: 153300 | AA8: =IF($AA$4="L-1",B8,IF($AA$4="L-2",C8,IF($AA$4="L-3",D8,IF($AA$4="L-4",E8,IF($AA$4="L-5",F8,IF($AA$4="L-6",G8,IF($AA$4="L-7",H8,IF($AA$4="L-8",I8,IF($AA$4="L-9",J8,IF($AA$4="L-10",K8,IF($AA$4="L-11",L8,IF($AA$4="L-12",M8,IF($AA$4="L-13",N8,IF($AA$4="L-14",O8,IF($AA$4="L-15",P8,IF($AA$4="L-16",Q8,IF($AA$4="L-17",R8,IF($AA$4="L-18",S8,IF($AA$4="L-19",T8,IF($AA$4="L-20",U8,IF($AA$4="L-21",V8,IF($AA$4="L-22",W8,IF($AA$4="L-23",X8,IF($AA$4="L-24",Y8,"")))))))))))))))))))))))) -> 45600 | AB8: =IF($AB$4="L-1",B8,IF($AB$4="L-2",C8,IF($AB$4="L-3",D8,IF($AB$4="L-4",E8,IF($AB$4="L-5",F8,IF($AB$4="L-6",G8,IF($AB$4="L-7",H8,IF($AB$4="L-8",I8,IF($AB$4="L-9",J8,IF($AB$4="L-10",K8,IF($AB$4="L-11",L8,IF($AB$4="L-12",M8,IF($AB$4="L-13",N8,IF($AB$4="L-14",O8,IF($AB$4="L-15",P8,IF($AB$4="L-16",Q8,IF($AB$4="L-17",R8,IF($AB$4="L-18",S8,IF($AB$4="L-19",T8,IF($AB$4="L-20",U8,IF($AB$4="L-21",V8,IF($AB$4="L-22",W8,IF($AB$4="L-23",X8,IF($AB$4="L-24",Y8,"")))))))))))))))))))))))) -> 54700
A9: 3 | B9: 18700 | C9: 19000 | D9: 19300 | E9: 20400 | F9: 22000 | G9: 22800 | H9: 23800 | I9: 27900 | J9: 30500 | K9: 35800 | L9: 40100 | M9: 47000 | N9: 56300 | O9: 59500 | P9: 64400 | Q9: 71400 | R9: 75300 | S9: 79900 | T9: 84800 | U9: 94300 | V9: 130600 | W9: 137600 | X9: 154700 | Y9: 157900 | AA9: 47000 | AB9: 56300
A10: 4 | B10: 19300 | C10: 19600 | D10: 19900 | E10: 21000 | F10: 22700 | G10: 23500 | H10: 24500 | I10: 28700 | J10: 31400 | K10: 36900 | L10: 41300 | M10: 48400 | N10: 58000 | O10: 61300 | P10: 66300 | Q10: 73500 | R10: 77600 | S10: 82300 | T10: 87300 | U10: 97100 | V10: 134500 | W10: 141700 | X10: 159300 | Y10: 162600 | AA10: 48400 | AB10: 58000
A11: 5 | B11: 19900 | C11: 20200 | D11: 20500 | E11: 21600 | F11: 23400 | G11: 24200 | H11: 25200 | I11: 29600 | J11: 32300 | K11: 38000 | L11: 42500 | M11: 49900 | N11: 59700 | O11: 63100 | P11: 68300 | Q11: 75700 | R11: 79900 | S11: 84800 | T11: 89900 | U11: 100000 | V11: 138500 | W11: 146000 | X11: 164100 | Y11: 167500 | AA11: 49900 | AB11: 59700
A12: 6 | B12: 20500 | C12: 20800 | D12: 21100 | E12: 22200 | F12: 24100 | G12: 24900 | H12: 26000 | I12: 30500 | J12: 33300 | K12: 39100 | L12: 43800 | M12: 51400 | N12: 61500 | O12: 65000 | P12: 70300 | Q12: 78000 | R12: 82300 | S12: 87300 | T12: 92600 | U12: 103000 | V12: 142700 | W12: 150400 | X12: 169000 | Y12: 172500 | AA12: 51400 | AB12: 61500
A13: 7 | B13: 21100 | C13: 21400 | D13: 21700 | E13: 22900 | F13: 24800 | G13: 25600 | H13: 26800 | I13: 31400 | J13: 34300 | K13: 40300 | L13: 45100 | M13: 52900 | N13: 63300 | O13: 67000 | P13: 72400 | Q13: 80300 | R13: 84800 | S13: 89900 | T13: 95400 | U13: 106100 | V13: 147000 | W13: 154900 | X13: 174100 | Y13: 177700 | AA13: 52900 | AB13: 63300
A14: 8 | B14: 21700 | C14: 22000 | D14: 22400 | E14: 23600 | F14: 25500 | G14: 26400 | H14: 27600 | I14: 32300 | J14: 35300 | K14: 41500 | L14: 46500 | M14: 54500 | N14: 65200 | O14: 69000 | P14: 74600 | Q14: 82700 | R14: 87300 | S14: 92600 | T14: 98300 | U14: 109300 | V14: 151400 | W14: 159500 | X14: 179300 | Y14: 183000 | AA14: 54500 | AB14: 65200
A15: 9 | B15: 22400 | C15: 22700 | D15: 23100 | E15: 24300 | F15: 26300 | G15: 27200 | H15: 28400 | I15: 33300 | J15: 36400 | K15: 42700 | L15: 47900 | M15: 56100 | N15: 67200 | O15: 71100 | P15: 76800 | Q15: 85200 | R15: 89900 | S15: 95400 | T15: 101200 | U15: 112600 | V15: 155900 | W15: 164300 | X15: 184700 | Y15: 188500 | AA15: 56100 | AB15: 67200
A16: 10 | B16: 23100 | C16: 23400 | D16: 23800 | E16: 25000 | F16: 27100 | G16: 28000 | H16: 29300 | I16: 34300 | J16: 37500 | K16: 44000 | L16: 49300 | M16: 57800 | N16: 69200 | O16: 73200 | P16: 79100 | Q16: 87800 | R16: 92600 | S16: 98300 | T16: 104200 | U16: 116000 | V16: 160600 | W16: 169200 | X16: 190200 | Y16: 194200 | AA16: 57800 | AB16: 69200
A17: 11 | B17: 23800 | C17: 24100 | D17: 24500 | E17: 25800 | F17: 27900 | G17: 28800 | H17: 30200 | I17: 35300 | J17: 38600 | K17: 45300 | L17: 50800 | M17: 59500 | N17: 71300 | O17: 75400 | P17: 81500 | Q17: 90400 | R17: 95400 | S17: 101200 | T17: 107300 | U17: 119500 | V17: 165400 | W17: 174300 | X17: 195900 | Y17: 200000 | AA17: 59500 | AB17: 71300
A18: 12 | B18: 24500 | C18: 24800 | D18: 25200 | E18: 26600 | F18: 28700 | G18: 29700 | H18: 31100 | I18: 36400 | J18: 39800 | K18: 46700 | L18: 52300 | M18: 61300 | N18: 73400 | O18: 77700 | P18: 83900 | Q18: 93100 | R18: 98300 | S18: 104200 | T18: 110500 | U18: 123100 | V18: 170400 | W18: 179500 | X18: 201800 | Y18: 206000 | AA18: 61300 | AB18: 73400
A19: 13 | B19: 25200 | C19: 25500 | D19: 26000 | E19: 27400 | F19: 29600 | G19: 30600 | H19: 32000 | I19: 37500 | J19: 41000 | K19: 48100 | L19: 53900 | M19: 63100 | N19: 75600 | O19: 80000 | P19: 86400 | Q19: 95900 | R19: 101200 | S19: 107300 | T19: 113800 | U19: 126800 | V19: 175500 | W19: 184900 | X19: 207900 | Y19: 212200 | AA19: 63100 | AB19: 75600
A20: 14 | B20: 26000 | C20: 26300 | D20: 26800 | E20: 28200 | F20: 30500 | G20: 31500 | H20: 33000 | I20: 38600 | J20: 42200 | K20: 49500 | L20: 55500 | M20: 65000 | N20: 77900 | O20: 82400 | P20: 89000 | Q20: 98800 | R20: 104200 | S20: 110500 | T20: 117200 | U20: 130600 | V20: 180800 | W20: 190400 | X20: 214100 | Y20: 218600 | AA20: 65000 | AB20: 77900
A21: 15 | B21: 26800 | C21: 27100 | D21: 27600 | E21: 29000 | F21: 31400 | G21: 32400 | H21: 34000 | I21: 39800 | J21: 43500 | K21: 51000 | L21: 57200 | M21: 67000 | N21: 80200 | O21: 84900 | P21: 91700 | Q21: 101800 | R21: 107300 | S21: 113800 | T21: 120700 | U21: 134500 | V21: 186200 | W21: 196100 | AA21: 67000 | AB21: 80200
A22: 16 | B22: 27600 | C22: 27900 | D22: 28400 | E22: 29900 | F22: 32300 | G22: 33400 | H22: 35000 | I22: 41000 | J22: 44800 | K22: 52500 | L22: 58900 | M22: 69000 | N22: 82600 | O22: 87400 | P22: 94500 | Q22: 104900 | R22: 110500 | S22: 117200 | T22: 124300 | U22: 138500 | V22: 191800 | W22: 202000 | AA22: 69000 | AB22: 82600
A23: 17 | B23: 28400 | C23: 28700 | D23: 29300 | E23: 30800 | F23: 33300 | G23: 34400 | H23: 36100 | I23: 42200 | J23: 46100 | K23: 54100 | L23: 60700 | M23: 71100 | N23: 85100 | O23: 90000 | P23: 97300 | Q23: 108000 | R23: 113800 | S23: 120700 | T23: 128000 | U23: 142700 | V23: 197600 | W23: 208100 | AA23: 71100 | AB23: 85100
A24: 18 | B24: 29300 | C24: 29600 | D24: 30200 | E24: 31700 | F24: 34300 | G24: 35400 | H24: 37200 | I24: 43500 | J24: 47500 | K24: 55700 | L24: 62500 | M24: 73200 | N24: 87700 | O24: 92700 | P24: 100200 | Q24: 111200 | R24: 117200 | S24: 124300 | T24: 131800 | U24: 147000 | V24: 203500 | AA24: 73200 | AB24: 87700
A25: 19 | B25: 30200 | C25: 30500 | D25: 31100 | E25: 32700 | F25: 35300 | G25: 36500 | H25: 38300 | I25: 44800 | J25: 48900 | K25: 57400 | L25: 64400 | M25: 75400 | N25: 90300 | O25: 95500 | P25: 103200 | Q25: 114500 | R25: 120700 | S25: 128000 | T25: 135800 | U25: 151400 | AA25: 75400 | AB25: 90300
A26: 20 | B26: 31100 | C26: 31400 | D26: 32000 | E26: 33700 | F26: 36400 | G26: 37600 | H26: 39400 | I26: 46100 | J26: 50400 | K26: 59100 | L26: 66300 | M26: 77700 | N26: 93000 | O26: 98400 | P26: 106300 | Q26: 117900 | R26: 124300 | S26: 131800 | T26: 139900 | U26: 155900 | AA26: 77700 | AB26: 93000
A27: 21 | B27: 32000 | C27: 32300 | D27: 33000 | E27: 34700 | F27: 37500 | G27: 38700 | H27: 40600 | I27: 47500 | J27: 51900 | K27: 60900 | L27: 68300 | M27: 80000 | N27: 95800 | O27: 101400 | P27: 109500 | Q27: 121400 | R27: 128000 | S27: 135800 | T27: 144100 | U27: 160600 | AA27: 80000 | AB27: 95800
A28: 22 | B28: 33000 | C28: 33300 | D28: 34000 | E28: 35700 | F28: 38600 | G28: 39900 | H28: 41800 | I28: 48900 | J28: 53500 | K28: 62700 | L28: 70300 | M28: 82400 | N28: 98700 | O28: 104400 | P28: 112800 | Q28: 125000 | R28: 131800 | S28: 139900 | T28: 148400 | U28: 165400 | AA28: 82400 | AB28: 98700
A29: 23 | B29: 34000 | C29: 34300 | D29: 35000 | E29: 36800 | F29: 39800 | G29: 41100 | H29: 43100 | I29: 50400 | J29: 55100 | K29: 64600 | L29: 72400 | M29: 84900 | N29: 101700 | O29: 107500 | P29: 116200 | Q29: 128800 | R29: 135800 | S29: 144100 | T29: 152900 | U29: 170400 | AA29: 84900 | AB29: 101700
A30: 24 | B30: 35000 | C30: 35300 | D30: 36100 | E30: 37900 | F30: 41000 | G30: 42300 | H30: 44400 | I30: 51900 | J30: 56800 | K30: 66500 | L30: 74600 | M30: 87400 | N30: 104800 | O30: 110700 | P30: 119700 | Q30: 132700 | R30: 139900 | S30: 148400 | T30: 157500 | U30: 175500 | AA30: 87400 | AB30: 104800
A31: 25 | B31: 36100 | C31: 36400 | D31: 37200 | E31: 39000 | F31: 42200 | G31: 43600 | H31: 45700 | I31: 53500 | J31: 58500 | K31: 68500 | L31: 76800 | M31: 90000 | N31: 107900 | O31: 114000 | P31: 123300 | Q31: 136700 | R31: 144100 | S31: 152900 | T31: 162200 | U31: 180800 | AA31: 90000 | AB31: 107900
A32: 26 | B32: 37200 | C32: 37500 | D32: 38300 | E32: 40200 | F32: 43500 | G32: 44900 | H32: 47100 | I32: 55100 | J32: 60300 | K32: 70600 | L32: 79100 | M32: 92700 | N32: 111100 | O32: 117400 | P32: 127000 | Q32: 140800 | R32: 148400 | S32: 157500 | T32: 167100 | U32: 186200 | AA32: 92700 | AB32: 111100
A33: 27 | B33: 38300 | C33: 38600 | D33: 39400 | E33: 41400 | F33: 44800 | G33: 46200 | H33: 48500 | I33: 56800 | J33: 62100 | K33: 72700 | L33: 81500 | M33: 95500 | N33: 114400 | O33: 120900 | P33: 130800 | Q33: 145000 | R33: 152900 | S33: 162200 | T33: 172100 | U33: 191800 | AA33: 95500 | AB33: 114400
A34: 28 | B34: 39400 | C34: 39800 | D34: 40600 | E34: 42600 | F34: 46100 | G34: 47600 | H34: 50000 | I34: 58500 | J34: 64000 | K34: 74900 | L34: 83900 | M34: 98400 | N34: 117800 | O34: 124500 | P34: 134700 | Q34: 149400 | R34: 157500 | S34: 167100 | T34: 177300 | U34: 197600 | AA34: 98400 | AB34: 117800
A35: 29 | B35: 40600 | C35: 41000 | D35: 41800 | E35: 43900 | F35: 47500 | G35: 49000 | H35: 51500 | I35: 60300 | J35: 65900 | K35: 77100 | L35: 86400 | M35: 101400 | N35: 121300 | O35: 128200 | P35: 138700 | Q35: 153900 | R35: 162200 | S35: 172100 | T35: 182600 | U35: 203500 | AA35: 101400 | AB35: 121300
A36: 30 | B36: 41800 | C36: 42200 | D36: 43100 | E36: 45200 | F36: 48900 | G36: 50500 | H36: 53000 | I36: 62100 | J36: 67900 | K36: 79400 | L36: 89000 | M36: 104400 | N36: 124900 | O36: 132000 | P36: 142900 | Q36: 158500 | R36: 167100 | S36: 177300 | T36: 188100 | AA36: 104400 | AB36: 124900
A37: 31 | B37: 43100 | C37: 43500 | D37: 44400 | E37: 46600 | F37: 50400 | G37: 52000 | H37: 54600 | I37: 64000 | J37: 69900 | K37: 81800 | L37: 91700 | M37: 107500 | N37: 128600 | O37: 136000 | P37: 147200 | Q37: 163300 | R37: 172100 | S37: 182600 | T37: 193700 | AA37: 107500 | AB37: 128600
A38: 32 | B38: 44400 | C38: 44800 | D38: 45700 | E38: 48000 | F38: 51900 | G38: 53600 | H38: 56200 | I38: 65900 | J38: 72000 | K38: 84300 | L38: 94500 | M38: 110700 | N38: 132500 | O38: 140100 | P38: 151600 | Q38: 168200 | R38: 177300 | S38: 188100 | T38: 199500 | AA38: 110700 | AB38: 132500
A39: 33 | B39: 45700 | C39: 46100 | D39: 47100 | E39: 49400 | F39: 53500 | G39: 55200 | H39: 57900 | I39: 67900 | J39: 74200 | K39: 86800 | L39: 97300 | M39: 114000 | N39: 136500 | O39: 144300 | P39: 156100 | Q39: 173200 | R39: 182600 | S39: 193700 | AA39: 114000 | AB39: 136500
A40: 34 | B40: 47100 | C40: 47500 | D40: 48500 | E40: 50900 | F40: 55100 | G40: 56900 | H40: 59600 | I40: 69900 | J40: 76400 | K40: 89400 | L40: 100200 | M40: 117400 | N40: 140600 | O40: 148600 | P40: 160800 | Q40: 178400 | R40: 188100 | S40: 199500 | AA40: 117400 | AB40: 140600
A41: 35 | B41: 48500 | C41: 48900 | D41: 50000 | E41: 52400 | F41: 56800 | G41: 58600 | H41: 61400 | I41: 72000 | J41: 78700 | K41: 92100 | L41: 103200 | M41: 120900 | N41: 144800 | O41: 153100 | P41: 165600 | Q41: 183800 | R41: 193700 | AA41: 120900 | AB41: 144800
A42: 36 | B42: 50000 | C42: 50400 | D42: 51500 | E42: 54000 | F42: 58500 | G42: 60400 | H42: 63200 | I42: 74200 | J42: 81100 | K42: 94900 | L42: 106300 | M42: 124500 | N42: 149100 | O42: 157700 | P42: 170600 | Q42: 189300 | R42: 199500 | AA42: 124500 | AB42: 149100
A43: 37 | B43: 51500 | C43: 51900 | D43: 53000 | E43: 55600 | F43: 60300 | G43: 62200 | H43: 65100 | I43: 76400 | J43: 83500 | K43: 97700 | L43: 109500 | M43: 128200 | N43: 153600 | O43: 162400 | P43: 175700 | Q43: 195000 | AA43: 128200 | AB43: 153600
A44: 38 | B44: 53000 | C44: 53500 | D44: 54600 | E44: 57300 | F44: 62100 | G44: 64100 | H44: 67100 | I44: 78700 | J44: 86000 | K44: 100600 | L44: 112800 | M44: 132000 | N44: 158200 | O44: 167300 | P44: 181000 | AA44: 132000 | AB44: 158200
A45: 39 | B45: 54600 | C45: 55100 | D45: 56200 | E45: 59000 | F45: 64000 | G45: 66000 | H45: 69100 | I45: 81100 | J45: 88600 | K45: 103600 | L45: 116200 | M45: 136000 | N45: 162900 | O45: 172300 | P45: 186400 | AA45: 136000 | AB45: 162900
A46: 40 | B46: 56200 | C46: 56800 | D46: 57900 | E46: 60800 | F46: 65900 | G46: 68000 | H46: 71200 | I46: 83500 | J46: 91300 | K46: 106700 | L46: 119700 | M46: 140100 | N46: 167800 | O46: 177500 | P46: 192000 | AA46: 140100 | AB46: 167800
